bitfinex/quotes_BTCUSD_20260101
["timestamp","ask_amount","ask_price","bid_price","bid_amount"]
[1767259059529,0.0001481,87924.0,87916.0,0.01137449]
[1767259061137,0.0001481,87924.0,87917.0,0.01137436]
[1767259063669,0.0001481,87924.0,87918.0,0.01137423]
[1767259063829,0.0001481,87924.0,87917.0,0.01137436]
[1767259064375,0.0001481,87924.0,87918.0,0.01137423]
[1767259067213,0.0001481,87924.0,87917.0,0.01137436]
[1767259067568,0.0001481,87924.0,87918.0,0.01137423]
[1767259068808,0.0001481,87924.0,87917.0,0.01137436]
[1767259068979,0.0001481,87924.0,87918.0,0.01137423]
[1767259069182,0.0001481,87924.0,87919.0,0.0113741]
[1767259070186,0.0001481,87924.0,87918.0,0.01137423]
[1767259070580,0.0001481,87924.0,87919.0,0.0113741]
[1767259070787,0.0001481,87924.0,87918.0,0.01137423]
[1767259071385,0.0001481,87924.0,87917.0,0.01137436]
[1767259072000,0.0001481,87924.0,87918.0,0.01137423]
[1767259072204,0.0001481,87924.0,87917.0,0.01137436]
[1767259072408,0.0001481,87924.0,87918.0,0.01137423]
[1767259073246,0.0001481,87924.0,87917.0,0.01048382]
[1767259073574,0.0001481,87924.0,87918.0,0.01137423]
[1767259074057,0.0001481,87924.0,87917.0,0.01048382]
[1767259074197,0.0001481,87924.0,87917.0,0.01137436]
[1767259075170,0.0001481,87924.0,87918.0,0.01137423]
[1767259075358,0.0001481,87924.0,87919.0,0.0113741]
[1767259075513,0.0001481,87924.0,87920.0,0.01137397]
[1767259075710,0.0001481,87924.0,87919.0,0.0113741]
[1767259076912,0.0001481,87924.0,87920.0,0.01137397]
[1767259077264,0.0001481,87924.0,87919.0,0.0113741]
[1767259077628,0.0001481,87924.0,87920.0,0.01137397]
[1767259078170,0.0001481,87924.0,87919.0,0.0113741]
[1767259078338,0.0001481,87924.0,87920.0,0.01137397]
[1767259078933,0.0001481,87924.0,87919.0,0.0113741]
[1767259079424,0.0001481,87924.0,87920.0,0.01137397]
[1767259081586,0.0001481,87924.0,87919.0,0.0113741]
[1767259082231,0.0001481,87924.0,87921.0,0.01137384]
[1767259082758,0.0001481,87924.0,87920.0,0.01137397]
[1767259082959,0.0001481,87924.0,87921.0,0.01137384]
[1767259083260,0.0001481,87924.0,87920.0,0.01137397]
[1767259084775,0.0002,87931.0,87921.0,0.05686923]
[1767259084977,0.0001481,87933.0,87921.0,0.05686923]
[1767259084978,0.0001481,87933.0,87927.0,0.01137307]
[1767259085396,0.0001481,87933.0,87928.0,0.01137294]
[1767259085775,0.0001481,87933.0,87928.0,0.05857347]
[1767259087890,0.0001481,87933.0,87928.0,0.04720053]
[1767259090238,0.0001481,87933.0,87927.0,0.01137307]
[1767259090400,1e-07,87933.0,87929.0,0.01137281]
[1767259091001,1e-07,87933.0,87928.0,0.05857347]
[1767259091223,1e-07,87933.0,87928.0,0.04720053]
[1767259091427,1e-07,87933.0,87929.0,0.01137281]
[1767259091842,1e-07,87933.0,87928.0,0.05857347]
[1767259092600,1e-07,87933.0,87928.0,0.04720053]
[1767259093100,1e-07,87933.0,87928.0,0.05857347]
[1767259093506,1e-07,87933.0,87928.0,0.04720053]
[1767259094306,1e-07,87933.0,87932.0,0.04720053]
[1767259094509,1e-07,87933.0,87930.0,0.05857321]
[1767259096801,1e-07,87933.0,87931.0,0.04720053]
[1767259097598,1e-07,87933.0,87932.0,0.04720053]
[1767259101520,0.51314857,87960.0,87931.0,0.05686225]
[1767259101521,0.51314857,87960.0,87942.0,0.01137113]
[1767259101522,0.55892755,87960.0,87942.0,0.01137113]
[1767259101738,0.55892755,87960.0,87945.0,0.01137074]
[1767259101739,0.0114,87958.0,87945.0,0.01137074]
[1767259102189,0.0114,87955.0,87947.0,0.01137048]
[1767259102403,0.0114,87955.0,87948.0,0.06822209]
[1767259102863,0.0114,87957.0,87948.0,0.06822209]
[1767259103090,0.0114,87957.0,87948.0,0.1135447]
[1767259103265,0.0114,87957.0,87948.0,0.05669296]
[1767259104801,0.0114,87957.0,87948.0,0.01137035]
[1767259105354,0.0114,87957.0,87948.0,0.05669296]
[1767259106780,0.0114,87958.0,87949.0,0.05685112]
[1767259107095,1e-07,87951.0,87949.0,0.05685112]
[1767259108348,1e-07,87951.0,87949.0,0.05679427]
[1767259108597,1e-07,87951.0,87949.0,0.10211688]
[1767259108899,1e-07,87951.0,87950.0,0.04532261]
[1767259112307,1e-07,87951.0,87949.0,0.05679427]
[1767259113481,1e-07,87951.0,87945.0,0.05916708]
[1767259113483,0.04577898,87977.0,87966.0,0.01136802]
[1767259113638,0.04577898,87977.0,87965.0,0.01136815]
[1767259114147,0.000302,87978.0,87967.0,0.01136789]
[1767259114452,0.000302,87978.0,87970.0,0.01136751]
[1767259114749,0.000302,87978.0,87970.0,0.01131077]
[1767259115503,0.000302,87978.0,87970.0,0.01136751]
[1767259115738,0.000302,87978.0,87972.0,0.01049139]
[1767259116151,0.000302,87978.0,87973.0,0.01136712]
[1767259116366,0.000302,87978.0,87972.0,0.01049139]
[1767259116583,0.000302,87978.0,87970.0,0.06820506]
[1767259116584,0.000302,87978.0,87971.0,0.01136738]
[1767259117114,0.000302,87978.0,87972.0,0.01136725]
[1767259117333,0.000302,87978.0,87973.0,0.0114]
[1767259117513,0.000302,87978.0,87973.0,0.0112]
[1767259117708,0.04608098,87978.0,87969.0,0.01136764]
[1767259117912,0.04608098,87978.0,87972.0,0.0114]
[1767259120667,0.04608098,87978.0,87971.0,0.0114]
[1767259122734,0.04618698,87978.0,87971.0,0.0114]
[1767259128717,0.000408,87978.0,87971.0,0.0114]
[1767259128943,0.04597898,87985.0,87978.0,0.000141]
[1767259129145,0.04597898,87985.0,87971.0,0.0114]
[1767259129454,0.04577898,87981.0,87971.0,0.0114]
[1767259130852,0.04577898,87981.0,87971.0,0.010992]
[1767259131461,0.04753322,87978.0,87967.0,0.0114]
[1767259131661,0.04753322,87978.0,87968.0,0.0114]
[1767259132546,0.04753322,87978.0,87969.0,0.0114]
[1767259133940,0.04773322,87985.0,87969.0,0.0114]
[1767259134554,0.51300047,87980.0,87969.0,0.0114]
[1767259135280,0.04773322,87979.0,87969.0,0.0114]
[1767259136923,0.04773322,87979.0,87963.0,0.02276841]
[1767259137082,0.04773322,87979.0,87964.0,0.02276828]
[1767259137284,0.04773322,87979.0,87965.0,0.01136815]
[1767259138823,0.0002,87979.0,87965.0,0.05997544]
[1767259139140,0.04773322,87979.0,87966.0,0.0114]
[1767259139957,0.04773322,87979.0,87967.0,0.01136789]
[1767259140362,0.04773322,87979.0,87966.0,0.0114]
[1767259141044,0.04773322,87979.0,87966.0,0.02276802]
[1767259142192,0.04773322,87979.0,87966.0,0.0114]
[1767259142551,0.04773322,87979.0,87960.0,0.0113688]
[1767259142552,0.04753322,87975.0,87960.0,0.0113688]
[1767259142749,0.04753322,87975.0,87965.0,0.0114]
[1767259142951,0.0002,87979.0,87975.0,0.000549]
[1767259143231,0.0114,87984.0,87975.0,0.000549]
[1767259143232,0.0114,87984.0,87975.0,0.00027421]
[1767259143397,0.01067367,87983.0,87971.0,0.01136738]
[1767259143599,0.01067367,87982.0,87972.0,0.01136725]
[1767259143903,0.0114,87984.0,87972.0,0.01136725]
[1767259144104,0.01067365,87983.0,87972.0,0.01136725]
[1767259144264,0.01067365,87982.0,87972.0,0.01136725]
[1767259144463,0.0114,87984.0,87982.0,7.4e-05]
[1767259144666,0.01067476,87983.0,87982.0,7.4e-05]
[1767259145175,0.01067476,87983.0,87972.0,0.01136725]
[1767259145438,0.01067476,87982.0,87972.0,0.01136725]
[1767259145676,0.51300047,87992.0,87972.0,0.01136725]
[1767259145677,3.3025,88000.0,87980.0,0.04229661]
[1767259145881,0.01067338,87996.0,87987.0,0.51300047]
[1767259146032,0.01067338,87995.0,87984.0,0.0113657]
[1767259146233,0.01067338,87994.0,87986.0,0.01136544]
[1767259146398,0.04769342,87997.0,87987.0,0.01136531]
[1767259146604,0.05820121,87996.0,87985.0,0.01136557]
[1767259146800,0.01066799,87995.0,87985.0,0.01136557]
[1767259147113,0.04753322,87995.0,87985.0,0.01136557]
[1767259147317,0.04753322,87995.0,87986.0,0.01136544]
[1767259147899,0.04753322,87995.0,87985.0,0.01136557]
[1767259148106,0.04753322,87995.0,87984.0,0.0113657]
[1767259148311,0.04753322,87995.0,87983.0,0.01136583]
[1767259149578,0.04753322,87995.0,87982.0,0.01136596]
[1767259150714,0.04753322,87995.0,87983.0,0.01136583]
[1767259150918,0.04753322,87995.0,87984.0,0.0113657]
[1767259151096,0.04753322,87995.0,87983.0,0.01136583]
[1767259151306,0.0001602,87997.0,87985.0,0.51300047]
[1767259151529,0.0001602,87997.0,87984.0,0.0113657]
[1767259151720,0.0001602,87997.0,87985.0,0.000106]
[1767259151925,0.0001602,87997.0,87985.0,0.01147157]
[1767259152134,0.0001602,87997.0,87985.0,0.000106]
[1767259152466,0.0001602,87997.0,87986.0,0.01136544]
[1767259152674,0.0001602,87997.0,87987.0,0.01136531]
[1767259152884,0.04769342,87997.0,87992.0,0.00641007]
[1767259153186,0.04761942,87997.0,87994.0,0.01136441]
[1767259153792,0.04761942,87997.0,87993.0,0.01136454]
[1767259154001,0.04761942,87997.0,87994.0,0.01136441]
[1767259154180,0.04761942,87997.0,87993.0,0.01136454]
[1767259154322,0.04761942,87997.0,87994.0,0.01136441]
[1767259154789,8.62e-05,87997.0,87994.0,0.06818639]
[1767259156865,8.62e-05,87997.0,87989.0,0.0114]
[1767259157200,8.62e-05,87997.0,87992.0,0.01136466]
[1767259157347,8.62e-05,87997.0,87990.0,0.01136492]
[1767259157747,8.62e-05,87997.0,87991.0,0.01136479]
[1767259158777,8.62e-05,87997.0,87992.0,0.01136466]
[1767259158979,8.62e-05,87997.0,87993.0,0.01136454]
[1767259159604,8.62e-05,87997.0,87992.0,0.01136466]
[1767259159808,8.62e-05,87997.0,87992.0,0.01081566]
[1767259159985,8.62e-05,87997.0,87992.0,0.01136466]
[1767259161200,8.62e-05,87997.0,87991.0,0.01136479]
[1767259161587,8.62e-05,87997.0,87989.0,0.0114]
[1767259161788,8.62e-05,87997.0,87989.0,0.01134317]
[1767259162542,0.04664815,87996.0,87982.0,0.00967582]
[1767259162748,0.04664815,87996.0,87983.0,0.0114]
[1767259162749,0.04675401,87996.0,87983.0,0.0114]
[1767259162969,0.04675401,87996.0,87984.0,0.0113657]
[1767259163112,0.04675401,87996.0,87985.0,0.01136557]
[1767259163451,0.04675401,87996.0,87983.0,0.02276583]
[1767259163452,0.04675401,87996.0,87984.0,0.0113657]
[1767259164223,0.04675401,87996.0,87983.0,0.02276583]
[1767259164756,0.04675401,87996.0,87983.0,0.01136583]
[1767259165165,0.04675401,87996.0,87982.0,0.0216772]
[1767259165955,0.04675401,87996.0,87982.0,0.02227858]
[1767259166174,0.04675401,87996.0,87982.0,0.01260276]
[1767259166342,0.04675401,87996.0,87982.0,0.02396872]
[1767259166941,0.04675401,87996.0,87962.0,0.04349937]
[1767259166942,0.04664815,87991.0,87962.0,0.04349937]
[1767259167158,0.00010586,87996.0,87962.0,0.04349937]
[1767259167159,0.04664815,87979.0,87965.0,0.01136815]
[1767259167360,0.04664815,87977.0,87961.0,0.01136867]
[1767259167785,0.04664815,87977.0,87962.0,0.01136854]
[1767259167984,0.04664815,87977.0,87964.0,0.0002342]
[1767259170040,0.04664815,87977.0,87959.0,0.01136893]
[1767259170041,0.04664815,87977.0,87963.0,0.0002626]
[1767259171013,0.04664815,87972.0,87963.0,0.0002626]
[1767259171214,0.05804815,87971.0,87963.0,0.0002626]
[1767259175280,0.05804815,87971.0,87963.0,0.01163101]
[1767259175491,0.05749915,87971.0,87963.0,0.0002626]
[1767259175849,0.05749915,87971.0,87963.0,0.01163101]
[1767259176379,0.05749915,87971.0,87963.0,0.0002626]
[1767259200890,0.05749915,87971.0,87955.0,0.02276945]
[1767259200891,0.000262,87963.0,87955.0,0.02276945]
[1767259201040,0.000262,87963.0,87960.0,0.06821275]
[1767259201207,0.010851,87971.0,87963.0,0.01136841]
[1767259201410,0.00150934,87971.0,87964.0,0.01136828]
[1767259201807,0.00150934,87971.0,87963.0,0.01136841]
[1767259202132,0.0015815,87971.0,87964.0,0.01136828]
[1767259203693,0.0015815,87971.0,87963.0,0.01136841]
[1767259204259,0.0015815,87971.0,87964.0,0.01136828]
[1767259204456,0.0015815,87971.0,87963.0,0.01136841]
[1767259206813,0.0015815,87971.0,87964.0,0.01136828]
[1767259207024,0.0015815,87971.0,87963.0,0.01136841]
[1767259208028,0.0015815,87971.0,87962.0,0.01136854]
[1767259208935,0.0114,87970.0,87961.0,0.01136867]
[1767259209295,0.0114,87970.0,87962.0,0.01136854]
[1767259209679,0.0114,87970.0,87957.0,0.05684545]
[1767259209680,0.000837,87962.0,87956.0,0.01136932]
[1767259209883,0.000837,87962.0,87958.0,0.01136906]
[1767259210080,0.04841176,87968.0,87958.0,0.01136906]
[1767259210539,0.0114,87967.0,87958.0,0.01136906]
[1767259210999,0.0114,87967.0,87957.0,0.01136919]
[1767259211201,0.0114,87967.0,87958.0,0.01136906]
[1767259211623,0.0114,87967.0,87957.0,0.01136919]
[1767259212026,0.04841176,87968.0,87957.0,0.01136919]
[1767259212251,0.000287,87957.0,87952.0,0.01136983]
[1767259212625,0.04841176,87966.0,87952.0,0.01136983]
[1767259212832,0.04841176,87966.0,87951.0,0.01136996]
[1767259213011,0.04841176,87966.0,87952.0,0.01136983]
[1767259213212,0.04841176,87966.0,87953.0,0.011534]
[1767259216760,0.04841176,87966.0,87953.0,0.0001643]
[1767259217572,0.04841176,87966.0,87953.0,0.011534]
[1767259219111,0.04841176,87966.0,87953.0,0.0001643]
[1767259219329,0.0114,87967.0,87943.0,0.0115353]
[1767259219330,0.000164,87953.0,87943.0,0.0115353]
[1767259219517,0.000164,87953.0,87944.0,0.02277087]
[1767259219823,0.04841176,87956.0,87944.0,0.0114]
[1767259220140,0.04841176,87956.0,87944.0,0.02277087]
[1767259220552,0.04841176,87956.0,87944.0,0.0114]
[1767259220953,0.04841176,87956.0,87944.0,0.02277087]
[1767259221108,0.04841176,87956.0,87944.0,0.0114]
[1767259221507,0.04841176,87956.0,87944.0,0.02277087]
[1767259221701,0.04841176,87956.0,87944.0,0.0114]
[1767259222516,0.04841176,87956.0,87944.0,0.02277087]
[1767259223004,0.04841176,87956.0,87945.0,0.01137074]
[1767259223373,0.04841176,87956.0,87944.0,0.02277087]
[1767259223784,0.04841176,87956.0,87945.0,0.01137074]
[1767259227360,0.51302218,87955.0,87944.0,0.0114]
[1767259227583,0.000287,87945.0,87944.0,0.0114]
[1767259227786,0.000287,87945.0,87943.0,0.0001643]
[1767259227960,0.04753283,87945.0,87943.0,0.0001643]
[1767259228865,0.04753283,87945.0,87937.0,0.01137177]
[1767259228866,0.04753283,87945.0,87933.0,0.01137229]
[1767259229068,0.04753283,87945.0,87933.0,0.06823312]
[1767259229790,0.04753283,87945.0,87935.0,0.01137203]
[1767259229945,0.04753283,87945.0,87936.0,0.0113719]
[1767259230203,0.04753283,87945.0,87935.0,0.01137203]
[1767259230764,0.04753283,87945.0,87934.0,0.01137216]
[1767259231358,0.04753283,87943.0,87935.0,0.01137203]
[1767259231902,0.04753283,87943.0,87933.0,0.01137229]
[1767259232122,0.04753283,87943.0,87934.0,0.01137216]
[1767259232578,0.04760495,87943.0,87934.0,0.01137216]
[1767259232971,0.04760495,87943.0,87926.0,0.0114]
[1767259232972,0.000123,87934.0,87926.0,0.0114]
[1767259233141,0.000123,87934.0,87928.0,0.01137294]
[1767259233339,0.04753283,87939.0,87926.0,0.0227732]
[1767259233632,0.04753283,87939.0,87928.0,0.01137294]
[1767259233878,0.04753283,87939.0,87930.0,0.01137268]
[1767259234256,0.04753283,87939.0,87929.0,0.01137281]
[1767259234455,0.04753283,87939.0,87930.0,0.01137268]
[1767259235536,0.04753283,87939.0,87929.0,0.01137281]
[1767259235992,0.04753283,87939.0,87930.0,0.01137268]
[1767259236201,0.04753283,87939.0,87929.0,0.01137281]
[1767259236517,0.04753283,87939.0,87877.0,0.001]
[1767259236518,0.04753283,87939.0,87924.0,0.01137345]
[1767259236722,0.0114,87938.0,87929.0,0.5]
[1767259237965,0.0114,87938.0,87929.0,0.51137281]
[1767259238589,0.0114,87938.0,87929.0,0.5]
[1767259243979,0.04753283,87937.0,87929.0,0.5]
[1767259248136,0.04710683,87937.0,87929.0,0.5]
[1767259248336,0.0114,87938.0,87930.0,0.01137268]
[1767259248518,0.0114,87938.0,87929.0,0.51137281]
[1767259248715,0.0114,87938.0,87930.0,0.01137268]
[1767259250037,0.0114,87938.0,87931.0,0.01137255]
[1767259250241,7.212e-05,87943.0,87938.0,0.4886]
[1767259250439,0.0455899,87941.0,87938.0,0.45442677]
[1767259250667,0.0455899,87941.0,87938.0,0.42025354]
[1767259250990,0.0455899,87941.0,87938.0,0.41970454]
[1767259260598,0.0455899,87941.0,87938.0,0.25546803]
[1767259260794,0.51302218,87940.0,87927.0,0.05611569]
[1767259261005,0.51302218,87940.0,87927.0,0.04474262]
[1767259261219,0.51302218,87940.0,87927.0,0.05611569]
[1767259261580,0.51302218,87940.0,87927.0,0.04474262]
[1767259261738,0.51302218,87940.0,87927.0,0.05611569]
[1767259262343,0.0455899,87939.0,87924.0,0.01137345]
[1767259264059,0.0455899,87939.0,87923.0,0.01137358]
[1767259264220,0.0455899,87939.0,87924.0,0.01137345]
[1767259264960,0.0455899,87939.0,87926.0,0.0113732]
[1767259266244,0.0114,87938.0,87926.0,0.0113732]
[1767259266448,0.0114,87938.0,87927.0,0.01137307]
[1767259266629,0.0114,87938.0,87926.0,0.0113732]
[1767259267234,0.0114,87938.0,87927.0,0.01137307]
[1767259267597,0.0114,87938.0,87926.0,0.0113732]
[1767259268633,0.0114,87938.0,87927.0,0.01137307]
[1767259268800,0.0114,87938.0,87926.0,0.0113732]
[1767259268993,0.0114,87938.0,87927.0,0.01137307]
[1767259270413,0.0114,87938.0,87926.0,0.0113732]
[1767259270597,0.0114,87938.0,87927.0,0.01137307]
[1767259270795,0.0569899,87938.0,87926.0,0.0113732]
[1767259271609,0.0569899,87938.0,87927.0,0.01137307]
[1767259271815,0.0114,87938.0,87927.0,0.01137307]
[1767259272397,0.0114,87938.0,87926.0,0.0113732]
[1767259272605,0.0114,87938.0,87927.0,0.01137307]
[1767259273051,0.0114,87938.0,87926.0,0.0113732]
[1767259274153,0.0114,87937.0,87926.0,0.0113732]
[1767259274970,0.0569899,87937.0,87926.0,0.0113732]
[1767259275170,0.0455899,87936.0,87926.0,0.0113732]
[1767259276863,0.0455899,87936.0,87923.0,0.05686746]
[1767259277152,0.0455899,87936.0,87923.0,0.01137358]
[1767259277748,0.0455899,87936.0,87924.0,0.01137345]
[1767259279142,0.0455899,87936.0,87925.0,0.01137332]
[1767259279674,0.0455899,87936.0,87923.0,0.01137358]
[1767259280250,0.0455899,87936.0,87924.0,0.01137345]
[1767259281218,0.0455899,87936.0,87923.0,0.01137358]
[1767259281360,0.0455899,87936.0,87924.0,0.01137345]
[1767259281559,0.0455899,87936.0,87925.0,0.01137332]
[1767259281802,0.0455899,87936.0,87924.0,0.01137345]
[1767259282008,0.0455899,87936.0,87925.0,0.01137332]
[1767259282209,0.0455899,87936.0,87924.0,0.01137345]
[1767259282409,0.0455899,87936.0,87925.0,0.01137332]
[1767259282761,0.0455899,87936.0,87924.0,0.01137345]
[1767259283002,0.0455899,87936.0,87925.0,0.01137332]
[1767259283423,0.0455899,87936.0,87924.0,0.01137345]
[1767259284684,0.0455899,87936.0,87923.0,0.01137358]
[1767259284927,0.0455899,87936.0,87925.0,0.01137332]
[1767259285309,0.0455899,87936.0,87924.0,0.01137345]
[1767259286946,0.0455899,87936.0,87925.0,0.01137332]
[1767259287946,0.0455899,87936.0,87924.0,0.01137345]
[1767259291229,0.0455899,87936.0,87925.0,0.01137332]
[1767259291509,0.0455899,87936.0,87924.0,0.0001664]
[1767259291717,0.0455899,87936.0,87925.0,0.01137332]
[1767259292385,0.0455899,87936.0,87925.0,0.01153972]
[1767259293749,0.0455899,87936.0,87926.0,0.0113732]
[1767259293955,0.0455899,87936.0,87925.0,0.01153972]
[1767259294892,0.0455899,87936.0,87926.0,0.0113732]
[1767259295431,0.0455899,87936.0,87926.0,0.0115396]
[1767259295685,0.0455899,87936.0,87927.0,0.01137307]
[1767259296052,0.0455899,87936.0,87926.0,0.0115396]
[1767259297767,0.0455899,87936.0,87926.0,0.0001664]
[1767259297974,0.0455899,87936.0,87926.0,0.0115396]
[1767259298193,0.0455899,87936.0,87926.0,0.0001664]
[1767259303214,0.0455899,87936.0,87920.0,0.01151897]
[1767259303215,0.04867036,87926.0,87920.0,0.000145]
[1767259303843,0.04867036,87926.0,87912.0,0.000145]
[1767259303844,0.04850436,87926.0,87912.0,0.000145]
[1767259315812,0.13638146,87918.0,87912.0,0.000145]
[1767259316017,0.04537489,87916.0,87912.0,0.000145]
[1767259316923,0.0114,87917.0,87916.0,0.000144]
[1767259317257,0.0115057,87917.0,87916.0,0.000144]
[1767259317477,0.0115057,87917.0,87912.0,0.000145]
[1767259317948,0.04537489,87916.0,87903.0,0.000145]
[1767259319141,0.04537489,87916.0,87903.0,0.01152117]
[1767259319314,0.04537489,87916.0,87903.0,0.000145]
[1767259319525,0.04537489,87916.0,87904.0,0.01137604]
[1767259319726,0.0115057,87917.0,87907.0,0.01137565]
[1767259319995,0.0001057,87917.0,87912.0,0.01137501]
[1767259320198,0.000549,87912.0,87904.0,0.05687964]
[1767259320400,0.04537489,87911.0,87903.0,0.0001096]
[1767259321010,0.13638146,87915.0,87905.0,0.01137591]
[1767259321221,0.05677489,87916.0,87903.0,0.0001096]
[1767259321222,0.04537489,87916.0,87904.0,0.01137604]
[1767259321554,0.0114,87914.0,87908.0,0.01137552]
[1767259322350,0.0114,87914.0,87906.0,0.01137578]
[1767259322550,0.0114,87914.0,87907.0,0.01137565]
[1767259322748,0.0114,87914.0,87908.0,0.01137552]
[1767259322958,0.0114,87914.0,87907.0,0.01137565]
[1767259323105,0.0114,87914.0,87908.0,0.01137552]
[1767259324056,0.0114,87914.0,87905.0,0.01137591]
[1767259324257,0.0114,87914.0,87906.0,0.01137578]
[1767259325036,0.0114,87914.0,87907.0,0.01137565]
[1767259325477,0.0001057,87917.0,87908.0,0.01137552]
[1767259325681,0.0114,87913.0,87905.0,0.01137591]
[1767259326083,0.0114,87913.0,87904.0,0.06050992]
[1767259327444,0.0114,87913.0,87904.0,0.01137604]
[1767259327672,0.0114,87913.0,87903.0,0.0001096]
[1767259328850,0.0114,87913.0,87903.0,0.01148577]
[1767259328999,0.0114,87913.0,87903.0,0.0001096]
[1767259330441,0.0114,87913.0,87903.0,0.01148577]
[1767259331190,0.0114,87913.0,87904.0,0.01137604]
[1767259331842,0.0114,87913.0,87905.0,0.01137591]
[1767259332070,0.0114,87913.0,87904.0,0.01137604]
[1767259332408,0.0114,87913.0,87905.0,0.01137591]
[1767259333237,0.0114,87913.0,87904.0,0.01137604]
[1767259334716,0.0114,87913.0,87903.0,0.01148577]
[1767259335144,0.0114,87913.0,87904.0,0.01137604]
[1767259335959,0.0114,87913.0,87905.0,0.01137591]
[1767259336525,0.0114,87913.0,87904.0,0.01137604]
[1767259337061,0.0114,87913.0,87903.0,0.01148577]
[1767259337831,0.0114,87913.0,87903.0,0.0001096]
[1767259338028,0.0114,87913.0,87904.0,0.01137604]
[1767259338230,0.0114,87913.0,87903.0,0.0001096]
[1767259338798,0.0114,87913.0,87903.0,0.01148577]
[1767259339647,0.0114,87913.0,87903.0,0.0001096]
[1767259339869,0.0114,87913.0,87903.0,0.01148577]
[1767259340082,0.0114,87913.0,87904.0,0.01137604]
[1767259340225,0.0114,87913.0,87903.0,0.01148577]
[1767259340423,0.0114,87912.0,87903.0,0.01148577]
[1767259340643,0.0114,87912.0,87904.0,0.01137604]
[1767259341260,0.0114,87911.0,87904.0,0.01137604]
[1767259341459,0.0114,87911.0,87903.0,0.01148577]
[1767259341460,0.0001057,87917.0,87903.0,0.01148577]
[1767259341667,0.04859229,87917.0,87903.0,0.01148577]
[1767259342015,0.04859229,87917.0,87903.0,0.0001096]
[1767259342139,0.04848659,87916.0,87903.0,0.0001096]
[1767259342340,0.0114,87915.0,87903.0,0.01148577]
[1767259342606,0.0114,87914.0,87903.0,0.0001096]
[1767259346098,0.0114,87914.0,87903.0,0.01148577]
[1767259346334,0.0114,87914.0,87903.0,0.0001096]
[1767259346531,0.0114,87914.0,87903.0,0.01148577]
[1767259347011,0.0114,87914.0,87904.0,0.01137604]
[1767259347209,0.0114,87913.0,87904.0,0.01137604]
[1767259347951,0.0114,87913.0,87903.0,0.0001096]
[1767259348174,0.0114,87913.0,87903.0,0.01148577]
[1767259348869,0.0114,87913.0,87905.0,0.01137591]
[1767259349361,0.0114,87913.0,87904.0,0.01137604]
[1767259349570,0.0114,87913.0,87903.0,0.01148577]
[1767259351299,0.0114,87913.0,87903.0,0.0001096]
[1767259351601,0.0114,87913.0,87903.0,0.01148577]
[1767259352182,0.0114,87912.0,87903.0,0.01148577]
[1767259352382,0.0114,87911.0,87904.0,0.01137604]
[1767259352712,0.0114,87911.0,87903.0,0.01148577]
[1767259353069,0.04848659,87916.0,87903.0,0.01148577]
[1767259353270,0.0114,87910.0,87903.0,0.01148577]
[1767259353488,0.0114,87909.0,87903.0,0.01148577]
[1767259354404,0.04848659,87916.0,87903.0,0.01148577]
[1767259354611,0.0114,87915.0,87903.0,0.01148577]
[1767259356195,0.0114,87914.0,87903.0,0.01148577]
[1767259357192,0.0114,87914.0,87903.0,0.0001096]
[1767259357394,0.0114,87914.0,87903.0,0.01148577]
[1767259360529,0.0114,87914.0,87903.0,0.0001096]
[1767259360729,0.0114,87914.0,87903.0,0.01148577]
[1767259361333,0.04848659,87916.0,87903.0,0.01148577]
[1767259361567,0.0114,87915.0,87903.0,0.01148577]
[1767259361899,0.0004394,87903.0,87901.0,0.01137643]
[1767259362079,0.0004394,87903.0,87901.0,0.06118827]
[1767259362285,0.0114,87908.0,87901.0,0.06118827]
[1767259362856,0.0114,87908.0,87901.0,0.04981184]
[1767259363043,0.0114,87908.0,87901.0,0.06118827]
[1767259366938,0.04848659,87916.0,87901.0,0.06118827]
[1767259367117,0.05988659,87915.0,87902.0,0.0113763]
[1767259367656,0.04848659,87915.0,87902.0,0.0113763]
[1767259367871,0.0114,87914.0,87902.0,0.0113763]
[1767259369366,0.0114,87914.0,87901.0,0.01137643]
[1767259369602,0.05988659,87914.0,87901.0,0.01137643]
[1767259369954,0.000439,87901.0,87900.0,0.51346452]
[1767259370153,0.000439,87901.0,87896.0,0.06118892]
[1767259370387,0.000439,87901.0,87896.0,0.04981184]
[1767259370552,0.04848659,87912.0,87896.0,0.04981184]
[1767259370757,0.04848659,87912.0,87896.0,0.06118892]
[1767259371093,0.04848659,87912.0,87896.0,0.04981184]
[1767259371678,0.04848659,87912.0,87896.0,0.06118892]
[1767259371988,0.04848659,87912.0,87896.0,0.04981184]
[1767259372401,0.51346452,87910.0,87896.0,0.06118892]
[1767259374185,0.51346452,87910.0,87897.0,0.01177695]
[1767259374384,0.51346452,87910.0,87897.0,0.0004]
[1767259376020,0.51346452,87910.0,87897.0,0.01177695]
[1767259376368,0.51346452,87910.0,87897.0,0.0004]
[1767259376369,0.04572889,87909.0,87897.0,0.0004]
[1767259376992,0.04572889,87909.0,87897.0,0.01177695]
[1767259377683,0.04561504,87909.0,87897.0,0.0004]
[1767259377913,0.04561504,87909.0,87897.0,0.01177695]
[1767259378106,0.04561504,87909.0,87897.0,0.0004]
[1767259381007,0.04561504,87909.0,87898.0,0.01137682]
[1767259381209,0.04561504,87909.0,87897.0,0.05728416]
[1767259381210,0.04561504,87909.0,87899.0,0.51346452]
[1767259381609,0.04561504,87909.0,87897.0,0.0004]
[1767259382056,0.04561504,87909.0,87898.0,0.01137682]
[1767259382227,0.04561504,87909.0,87897.0,0.01177695]
[1767259382634,3.9e-05,87897.0,87882.0,0.049066]
[1767259382834,3.9e-05,87897.0,87882.0,0.10596023]
[1767259382835,0.0114,87896.0,87882.0,0.10596023]
[1767259383038,0.0114,87896.0,87882.0,0.049066]
[1767259383222,0.0114,87896.0,87884.0,0.01137863]
[1767259384124,0.0114,87896.0,87883.0,0.01137876]
[1767259384750,0.0114,87896.0,87884.0,0.01137863]
[1767259385668,0.04572889,87895.0,87882.0,0.01152729]
[1767259386348,0.51346452,87892.0,87882.0,0.0001484]
[1767259386574,0.04572889,87892.0,87882.0,0.0001484]
[1767259386749,0.55919341,87892.0,87882.0,0.0001484]
[1767259387155,0.55919341,87892.0,87882.0,4e-07]
[1767259387156,0.04572889,87891.0,87882.0,4e-07]
[1767259391499,0.05705934,87891.0,87882.0,4e-07]
[1767259391704,0.04572889,87890.0,87882.0,4e-07]
[1767259391922,0.04572889,87888.0,87882.0,4e-07]
[1767259392533,0.04572889,87888.0,87880.0,4e-07]
[1767259392732,0.04572889,87886.0,87877.0,4e-07]
[1767259392976,0.04572889,87886.0,87864.0,0.00470178]
[1767259392977,0.04572889,87886.0,87864.0,0.0001465]
[1767259393191,0.51346452,87881.0,87864.0,0.00470194]
[1767259393349,0.05712889,87880.0,87864.0,0.00470194]
[1767259393722,0.05712889,87880.0,87864.0,0.0001465]
[1767259393924,0.05712889,87880.0,87871.0,5.3e-07]